Cogmind - Beta 14 @@@ ROGUE MODE // 2024.08.22 @ 11:13:24 Player: Syanka Result: Destroyed by QA-BF9(R) with Subdweller Beam Cannon Performance ------------- Evolutions (0) 0 Regions Visited (2) 400 Robots Destroyed (41) 205 Value Destroyed (780) 780 Prototype IDs (0) 0 Alien Tech Used (0) 0 Bonus (0) 0 TOTAL SCORE: 1385 Bonus ------- None Cogmind --------- Core Integrity 0/250 Matter 137/300 Energy 160/160 System Corruption 2% Temperature Cool (9) Movement Treading (240) Ox1 Location -10/Subcaves Parts ------- > --- POWER (1) -------- Light Nuclear Core > --- PROPULSION (2) --- Light Treads Light Treads > --- UTILITY (2) ------ High-capacity Storage Unit Seismic Detector > --- WEAPON (2) ------- Autogun Autogun > --- INVENTORY (20) --- Subdweller Power Source Subdweller Power Source Light Treads Cooling System Large Battery (200) Machine Analyzer Subdweller Optics Scrap Shield Hacking Suite Subdweller Laser Battle Rifle Subdweller Machine Gun Subdweller Machine Gun Improved Light Cannon Improved Light Cannon Rocket Launcher Rocket Launcher Subdweller Shrapnel Launcher Multitool Peak State ------------ > --- POWER ------------ Light Nuclear Core > --- PROPULSION ------- Light Treads Light Treads > --- UTILITY ---------- High-capacity Storage Unit Seismic Detector > --- WEAPON ----------- Autogun Battle Rifle > --- INVENTORY -------- Subdweller Power Source Subdweller Power Source Light Treads Cooling System Large Battery Machine Analyzer Subdweller Optics Scrap Shield Hacking Suite Subdweller Laser Autogun Autogun Subdweller Machine Gun Improved Light Cannon Improved Light Cannon Rocket Launcher Rocket Launcher Subdweller Shrapnel Launcher Multitool [Rating: 15] Favorites ----------- Power Light Nuclear Core Engine Light Ion Engine Power Core Light Nuclear Core Propulsion Light Treads Treads Light Treads Wheel Wheel Utility Seismic Detector Device Seismic Detector Storage High-capacity Storage Unit Processor Signal Interpreter Weapon Improved Light Cannon Energy Gun EM Pulse Gun Energy Cannon Light EM Pulse Cannon Ballistic Gun Autogun Ballistic Cannon Improved Light Cannon Launcher Rocket Launcher Build | -11 -10 -10 ------- Run | Yrd Mat Sub Slots Evolved . | . . . Power . | . . . Propulsion . | . . . Utility . | . . . Weapon . | . . . Parts Attached 58 | 11 31 16 Power 3 | 1 2 . Engine 1 | 1 . . Core 2 | . 2 . Reactor . | . . . Propulsion 9 | 4 3 2 Treads 5 | . 3 2 Leg . | . . . Wheel 4 | 4 . . Hover . | . . . Flight . | . . . Utility 10 | 3 5 2 Device 5 | 2 2 1 Storage 4 | 1 2 1 Processor 1 | . 1 . Hackware . | . . . Protection . | . . . Artifact . | . . . Weapon 36 | 3 21 12 Energy Gun 4 | 2 2 . Energy Cannon 8 | . 6 2 Ballistic Gun 8 | 1 1 6 Ballistic Cannon 12 | . 10 2 Launcher 4 | . 2 2 Special Weapon . | . . . Impact Weapon . | . . . Slashing Weapon . | . . . Piercing Weapon . | . . . Special Melee Weapon . | . . . Unidentified Prototypes . | . . . Parts Lost 4 | . 1 3 Power . | . . . Propulsion 1 | . . 1 Utility 1 | . 1 . Weapon 2 | . . 2 Highest Loss Streak 3 | . 1 3 To Critical Strikes . | . . . Average Slot Usage (%) 99 | . 99 99 Engine 1 | . 2 . Core 12 | . 11 14 Treads 26 | . 25 27 Wheel 1 | . 2 . Device 13 | . 13 13 Storage 14 | . 14 14 Energy Gun 1 | . 1 . Energy Cannon 4 | . 4 4 Ballistic Gun 3 | . . 10 Ballistic Cannon 18 | . 20 12 Peak Build Rating 15 | 8 14 15 Average Rating 13 | 6 13 14 On Entrance 7 | . 8 14 Naked Turns . | . . . Heaviest Build 56 | 11 56 54 Greatest Support 40 | 20 40 40 Greatest Overweight (x) 2 | . 2 1 Average Overweight (x) . | . . 1 Largest Inventory Capacity 20 | 8 20 20 Average Capacity 19 | 7 19 20 Most Carried 20 | 8 20 20 Average Carried 18 | 5 18 19 Final Capacity 20 | 8 20 20 Final Carried 20 | 8 20 20 Class Distribution -------------------- 100% | Mutant Dominant Class ---------------- Mutant | -10/Materials Mutant | -10/Subcaves Resources | -11 -10 -10 ----------- Run | Yrd Mat Sub Matter Collected 1239 | 333 586 320 Remotely . | . . . Salvage Created 1098 | 210 664 224 Parts 80 | 17 53 10 Haulers Intercepted 2 | . 2 . Recyclers Shooed 1 | . 1 . Parts Field Recycled . | . . . Retrieved Matter . | . . . Parts Self-Destructed 18 | . . 18 Prevented . | . . . Kills | -11 -10 -10 ------- Run | Yrd Mat Sub Combat Hostiles Destroyed 22 | . 15 7 Guns 6 | . 3 3 Cannons 9 | . 7 2 AOE 7 | . 5 2 Classes Destroyed 11 | 3 7 1 Worker 1 | 1 . . Builder 1 | . 1 . Tunneler 6 | 5 1 . Hauler 2 | . 2 . Recycler 3 | 1 2 . Mechanic 1 | . 1 . Operator 3 | . 3 . Watcher 2 | . 2 . Swarmer 9 | . 9 . Grunt 6 | . 6 . Subdweller 7 | . . 7 Best Kill Streak 6 | 6 4 3 Combat Bots Only 3 | . 3 3 Max Kills in Single Turn 2 | 1 2 1 Gunslinging . | . . . Exploded 2 | . 2 1 Melee . | . . . Uniques/NPCs Destroyed . | . . . Combat | -11 -10 -10 -------- Run | Yrd Mat Sub Hostile Shots Fired 85 | . 45 40 Missed 29 | . 18 11 Damage Taken 1245 | 18 318 909 Core 268 | . 92 176 Absorbed by Shields . | . . . Regen/Repaired (Parts) 80 | . 80 . Core Remaining (%) 100 | 100 . . Volleys Fired 128 | 23 54 51 Largest 2 | 2 2 2 Hottest 112 | 60 112 112 Shots Fired 228 | 46 105 77 Gun 94 | 46 24 24 Cannon 124 | . 76 48 Launcher 10 | . 5 5 Special . | . . . Kinetic 139 | 23 54 62 Thermal 18 | 16 2 . Explosive 10 | . 5 5 Electromagnetic 61 | 7 44 10 Robot Hit Streak 19 | 8 8 19 Robot Miss Streak 5 | 3 5 2 Penetration Max . | . . . Secondary Targets 1 | . 1 . Max Gunslinging Chain 1 | . 1 . Shots Hit Robots 123 | 29 54 40 Core Hits 53 | 11 30 12 Critical Kills 1 | . . 1 Critical Parts Destroyed . | . . . Critical Strikes 4 | . 3 1 Destroy 1 | . . 1 Blast 2 | . 2 . Corrupt 1 | . 1 . Melee Attacks . | . . . Impact . | . . . Slashing . | . . . Piercing . | . . . Sneak Attacks . | . . . Combat Hostiles . | . . . Follow-up Attacks . | . . . Damage Inflicted 2535 | 344 1512 679 Guns 668 | 305 136 227 Cannons 1199 | . 945 254 Explosions 655 | 39 418 198 Melee . | . . . Ramming 13 | . 13 . Kinetic 1026 | 94 621 311 Thermal 269 | 185 84 . Explosive 554 | . 356 198 Electromagnetic 673 | 65 438 170 Impact . | . . . Slashing . | . . . Piercing . | . . . Highest Corruption 2 | . 2 2 Average Corruption 1 | . 1 2 Corruption Purged . | . . . Corruption Blocked . | . . . Effects 32 | . 16 16 Message Errors 10 | . 4 6 Matter Fused 6 | . 2 4 Heat Flow Errors 3 | . 2 1 Energy Discharges 2 | . 1 1 Data Loss (minor) 5 | . 2 3 Data Loss (major) 2 | . 2 . Misfires 2 | . 2 . Alerts 2 | . 1 1 Overload Shots . | . . . Overflow Damage 90 | . 78 12 Projectiles 71 | . 71 . Explosions 19 | . 7 12 Melee . | . . . Knockbacks 4 | . 2 2 Impact . | . . . Kinetic 4 | . 2 2 Secondary . | . . . Self-Inflicted Damage 191 | 19 75 97 Shots 7 | 1 3 3 Rammed 2 | . 2 . Targets Rammed 2 | . 2 . Kicked . | . . . Crushed . | . . . Highest Temperature 262 | 40 262 234 Average Temperature 44 | 22 48 60 Received Heat Transfer 231 | . 72 159 Siege Activations . | . . . Robots Corrupted . | . . . Combat Hostiles . | . . . Parts Fried 5 | . 2 3 Impact Corruptions . | . . . Robots Melted . | . . . Combat Hostiles . | . . . Parts Melted 1 | 1 . . Heat Transferred 475 | 375 100 . Parts Sabotaged . | . . . Parts Stolen . | . . . Parts Stripped . | . . . Power Chain Reactions 2 | 1 1 . Alert | -11 -10 -10 ------- Run | Yrd Mat Sub Peak Influence 206 | 35 206 . Initial 22 | . 22 . Average 62 | 17 65 . Maximum Alert Level 1 | . 1 . Low Security (%) 96 | 100 95 . Level 1 3 | . 4 . Level 2 . | . . . Level 3 . | . . . Level 4 . | . . . Level 5 . | . . . High Security . | . . . Max Security . | . . . Squads Dispatched 5 | . 5 . Investigation 2 | . 2 . Extermination . | . . . Reinforcement 3 | . 3 . Assault . | . . . Garrison . | . . . Intercept . | . . . Searches Triggered . | . . . Construction Impeded . | . . . Haulers Reinforced . | . . . Active Scanning Responses . | . . . Cargo Convoy Interrupts . | . . . Stealth | -11 -10 -10 --------- Run | Yrd Mat Sub Distress Signals 1 | . 1 . Communications Jammed . | . . . Distress Signals . | . . . Times Spotted 35 | . 27 8 Peak Tracking Total 4 | . 4 3 Tactical Retreats 1 | . 1 . Traps | -11 -10 -10 ------- Run | Yrd Mat Sub Traps Triggered 2 | . 2 . Indirectly . | . . . Trap Hack Attempts . | . . . Triggered . | . . . Disarmed . | . . . Reprogrammed . | . . . Reused . | . . . Traps Extracted . | . . . Installed . | . . . Triggered . | . . . Machines | -11 -10 -10 ---------- Run | Yrd Mat Sub Machines Disabled 3 | . 3 . Max in Single Turn 2 | . 2 . Machines Repaired . | . . . Machines Dismantled . | . . . Machines Sabotaged . | . . . Overloaded Fab Kills . | . . . Hacking | -11 -10 -10 --------- Run | Yrd Mat Sub Machines Accessed 7 | . 7 . Terminals 5 | . 5 . Fabricators . | . . . Repair Stations 1 | . 1 . Recycling Units 1 | . 1 . Scanalyzers . | . . . Garrison Access . | . . . Total Hacks 29 | . 29 . Successful 12 | . 12 . Failed 17 | . 17 . Catastrophic 3 | . 3 . Database Lockouts . | . . . Manual 18 | . 18 . Terminals 23 | . 23 . Fabricators . | . . . Repair Stations 5 | . 5 . Recycling Units 1 | . 1 . Scanalyzers . | . . . Garrison Access . | . . . Terminal Hacks 4 | . 4 . Robot Analysis 2 | . 2 . Alert Level 1 | . 1 . Locate Traps 1 | . 1 . Fabricator Hacks . | . . . Repair Station Hacks 4 | . 4 . Scan Component 2 | . 2 . Repair 2 | . 2 . Recycling Unit Hacks 1 | . 1 . Retrieve Components 1 | . 1 . Scanalyzer . | . . . Garrison Access Hacks . | . . . Unauthorized Hacks 3 | . 3 . Terminals 3 | . 3 . Assimilate 1 | . 1 . Botnet 1 | . 1 . Operators 1 | . 1 . Fabricators . | . . . Repair Stations . | . . . Recycling Units . | . . . Scanalyzers . | . . . Garrison Access . | . . . Data Cores Recovered . | . . . Used . | . . . Hacking Detections 5 | . 5 . Full Trace Events 2 | . 2 . Feedback Events . | . . . Feedback Blocked . | . . . Robot Schematics Acquired . | . . . Robots Built . | . . . Authchips . | . . . Time . | . . . Total Robot Build Rating . | . . . Part Schematics Acquired . | . . . Parts Built . | . . . Authchips . | . . . Time . | . . . Total Part Build Rating . | . . . Parts Repaired 2 | . 2 . Time 64 | . 64 . Parts Recycled . | . . . Recycled Matter . | . . . Retrieved Matter . | . . . Retrieved Components 10 | . 10 . Parts Scanalyzed . | . . . Part Schematics Acquired . | . . . Parts Damaged . | . . . Bothacking | -11 -10 -10 ------------ Run | Yrd Mat Sub Used RIF Installer . | . . . Robots Hacked . | . . . Non-combat . | . . . Combat . | . . . Robot Hacks Applied . | . . . Relay Couplers Released . | . . . Fabnet Peak Effective % . | . . . Robots Rewired . | . . . Allies Hacked . | . . . Hacks Repelled . | . . . Allies | -11 -10 -10 -------- Run | Yrd Mat Sub Total Allies . | . . . Largest Group . | . . . Highest-Rated Group . | . . . Highest-Rated Ally . | . . . Total Orders . | . . . Ally Attacks . | . . . Total Damage . | . . . Kills . | . . . Allies Corrupted . | . . . Allies Melted . | . . . Intel | -11 -10 -10 ------- Run | Yrd Mat Sub Robot Analysis Total 2 | . 2 . Derelict Logs Recovered . | . . . Drone Launches . | . . . Drone Recoveries . | . . . Exploration | -11 -10 -10 ------------- Run | Yrd Mat Sub Turns Passed 4546 | 177 2882 1487 Spaces Moved 1730 | 114 1093 523 Core 2 | 2 . . Treads 1428 | . 905 523 Legs . | . . . Wheels 300 | 112 188 . Hover . | . . . Flight . | . . . Fastest Speed 50 | 50 80 240 Average Speed 213 | 79 214 240 Slowest Speed 240 | 80 240 240 Overloaded Moves . | . . . Propulsion Burnouts . | . . . Robots Hopped . | . . . Cave-ins Triggered . | . . . Exploration Rate (%) 44 | 3 94 36 Regions Visited 2 Branch Regions 1 Pre-discovered Areas 1 | . . 1 Known Exits Taken . | . . . Unknown Exits Taken 2 | 1 1 . Scrap Searched 2 | . . 2 Spaces Dug . | . . . Terrain Destroyed 96 | . 76 20 Melee . | . . . Projectile 3 | . 3 . AOE 93 | . 73 20 Terrain Rammed . | . . . Walls Destroyed . | . . . Machines Disabled . | . . . Actions | -11 -10 -10 --------- Run | Yrd Mat Sub Total 2353 | 154 1517 682 Wait 376 | . 301 75 Move 1728 | 113 1092 523 Hop . | . . . Pick Up 39 | 6 24 9 Fast Attach 10 | 7 3 . Attach 5 | . 2 3 Detach 1 | . 1 . Swap 43 | 4 26 13 Drop 21 | 1 12 8 Fire 128 | 23 54 51 Melee . | . . . Ram . | . . . Kick . | . . . Crush 2 | . 2 . Escape Stasis . | . . . Rewire . | . . . Trap . | . . . Miscellaneous . | . . . Route ------- -11/Scrapyard -10/Materials (discovered 6 exits: [*Mat x3] / [*Min x2] / [*Sub]) -10/Subcaves (discovered 1 exit: [*Mat]) History --------- Turn | Location | Event 17 | -11/Scrapyard | Discovered new exit (range 15) 178 | -11/Scrapyard | Entered Materials 215 | -10/Materials | Discovered new exit (range 12) 332 | -10/Materials | Build established: Mutant 467 | -10/Materials | Discovered new exit (range 6) 599 | -10/Materials | Discovered new exit (range 10) 1691 | -10/Materials | Discovered new exit (range 4) 1775 | -10/Materials | Repaired Lgt. Nuclear Core 1803 | -10/Materials | Repaired Lgt. Treads 2776 | -10/Materials | Discovered new exit (range 4) 3036 | -10/Materials | Discovered new exit (range 11) 3060 | -10/Materials | Entered Subcaves 3075 | -10/Subcaves | Shifting Twisted Machinery released Sub. Power Source 3300 | -10/Subcaves | Shifting Twisted Machinery released Sub. Shrapnel Launcher 3302 | -10/Subcaves | Discovered new exit (range 7) 3306 | -10/Subcaves | Shifting Twisted Machinery released Sub. Power Source 3410 | -10/Subcaves | Learned location of Zion (-6) 3410 | -10/Subcaves | Met a Zionite searching for "candidates" 3833 | -10/Subcaves | Ambushed by Subdweller buried in earth 3839 | -10/Subcaves | Core integrity fell below 50% 3881 | -10/Subcaves | Lost 3 parts (1n2w) 4017 | -10/Subcaves | A swath of the cavern ceiling suddenly collapsed 4544 | -10/Subcaves | Core integrity fell below 20% 4547 | -10/Subcaves | Destroyed by QA-BF9(R) with Subdweller Beam Cannon Last Messages --------------- 04213_ Acquired 55 matter. 04217_ Dropped Lgt. EM Pulse Cannon. 04218_ Acquired Sub. Power Source. 04219_ J3-JKL(u) deconstructs Twisted Machinery. 04223_ Subatomizers dissect the Disposable Heat Sink. 04270_ RZ-IOA(R) destroyed. 04276_ Acquired Multitool. 04283_ WX-E1J(R) destroyed. 04286_ Acquired 45 matter. 04295_ Acquired 37 matter. 04307_ Dropped Autogun. 04307_ Acquired Sub. Machine Gun. 04329_ HS3E>MXEP4YIYU,OU5C0NRMHLIZ=DU= 04356_ Subatomizers dissect the Sub. Optics. 04378_ HRQYSI%MK2JTZZQ|EANND#P0X<8M 4G 04397_ Acquired 11 matter. 04404_ Acquired 15 matter. 04470_ System corrupted: Matter fused (-10). 04525_ QA-BF9(R): "OHNO!" Map ----- +----------------------------------------------------+ | ?????????????????????????????????????????????????? | | ?????????????????????????????????????????????????? | | ?????????????????????????????????????????????????? | | ?????????????????????????????????????????????????? | | ?????????????????????????????????????????????????? | | ?????????????????????????????????????????????????? | | ?????????????????????????????????????????????????? | | ?????????????????????????????????????????????????? | | ?????????????????????????????????????????????????? | | ?????????????????????????????????????????????????? | | ?????????????????????????????????????????????????? | | ?????????????????????????????????????????????????? | | ????????????????????????###??????????????????????? | | ??????????????????????? "" ??????????????????????? | | ???????????????????###?"""#??????????????????????? | | ?????????????????### #"" ??????????????????????? | | ?????????????????# "#" ##?????????????????????? | | ??????????????????? " #?????????????????????? | | ???????????????????? R ??????????????????????? | | ????????????????????? #??????????????????????? | | ??????????????????????# ##?????????????????????? | | ??????????????????????# ##????????????????????? | | ??????????????????????# #????????????????????? | | ??????###??#######????## #????????????????????? | | ??????#"#### ###"##????# ##????????????????????? | | ??????#"" ""##"#####?# @"###???????????????????? | | ??????#"#### # ##" "### #???????????????????? | | ??????###""####""### ###"" #???????????????????? | | ?????#### ##### ######?#""" #???????????????????? | | ???### "## "" ## # #????## " ##??????????????????? | | ???# " ## # ##?????##"" ##?????????????????? | | ???## "#"##" "##??????##" "#?????????????????? | | ????# ###""####"""#???????#" #?????????????????? | | ???## ####""#######???????#"" #?????????????????? | | ???# ######?????????????# " #?????????????????? | | ???## " ##??????????????## " #?????????????????? | | ???## ##?????????????# #?????????????????? | | ???# ] #?????????????# #?????????????????? | | ???# ! #??????????#### "#?????###?????????? | | ???## ## ##??????????# ""#????# #?????????? | | ????#### ##??????????## ""#???# #?????????? | | ??????## #???##?????## ###??? #?????????? | | ??????# #??## ##??## #??### #?????????? | | ??????# ##### #?## #?## #?????????? | | ?????## #?# ### ### #???????????? | | ?????# #?# ## #???????????? | | ?????# ### ## ## #???????????? | | ?????# ### # #???????????? | | ?????# ####### ## #???????????? | | ?????## ###?# ## ### #???????????? | +----------------------------------------------------+ Best States ------------- Heat Dissipation 25 Energy Generation 14 Energy Capacity 360 Matter Stores 300 Matter Capacity 300 Sight Range 16 Terrain Scan Density 10 Evasion (%) 44 Recoil Reduction 2 Item Schematics ----------------- None Robot Schematics ------------------ None Fabricated ------------ Nothing Alien Tech Used ----------------- None Achievements -------------- None Challenges ------------ None Game ------ Seed ChromaticSniperDeconstructor Manual? 0 Play Time 00:26:26 Cumulative 86.9 hours Start 2024.08.22 @ 10:43:47 End 2024.08.22 @ 11:13:24 Sessions 1 Manual Loads 0 Difficulty Rogue Special Mode None Game No. 60 Rogue 47 Adventurer 13 Explorer 0 Win Type - Total 1 Types 1/0/0/0/0/0/0/0/0 Lore% 32 Gallery% 45 Achievement% 40 Wizard Run 0 Options --------- Layout 2 ASCII 0 Keyboard 1 Movement Numpad Keybinds 0 Fullscreen 2 Font 16/Swanston Map View 55x47 Zoom Use 0% Tactical HUD 1 Map Filters NONE Filters NONE Steam 0 RUN: 0e8415a1-7e58-489e-92ca-7306b2bd22a9